bitfinex/quotes_BTCUSD_20251102
["timestamp","ask_amount","ask_price","bid_price","bid_amount"]
[1762111669439,0.042,110270.0,110260.0,1.14996634]
[1762111677346,0.042,110270.0,110260.0,0.72613462]
[1762111679221,0.042,110270.0,110260.0,1.14996634]
[1762111680474,0.042,110270.0,110260.0,0.72613462]
[1762111681157,0.042,110270.0,110260.0,0.11184409]
[1762111681373,0.64720471,110270.0,110260.0,0.06548231]
[1762111681570,1.02338699,110270.0,110260.0,0.06548231]
[1762111681806,1.04293613,110270.0,110260.0,0.01341231]
[1762111682096,1.11869368,110270.0,110260.0,0.01341231]
[1762111682277,2.09751642,110270.0,110260.0,0.01341231]
[1762111682527,1.85314822,110260.0,110250.0,0.014005]
[1762111682744,2.02457581,110260.0,110250.0,0.01448848]
[1762111682965,2.02457575,110260.0,110250.0,0.01448848]
[1762111683178,2.05184147,110260.0,110250.0,0.01448848]
[1762111683410,2.05181005,110260.0,110250.0,0.01448848]
[1762111683591,1.64350299,110260.0,110250.0,0.01448848]
[1762111684279,2.07822201,110260.0,110250.0,0.01448848]
[1762111684496,2.09522201,110260.0,110250.0,0.01748848]
[1762111684714,1.66450299,110260.0,110250.0,0.01748848]
[1762111684943,1.59870575,110260.0,110250.0,0.01448848]
[1762111685405,1.60770575,110260.0,110250.0,0.01648848]
[1762111686304,1.63203123,110260.0,110250.0,0.01648848]
[1762111686529,1.20866449,110260.0,110250.0,0.01648848]
[1762111686746,1.22707575,110260.0,110250.0,0.01648848]
[1762111687379,1.22706635,110260.0,110250.0,0.01648848]
[1762111688237,0.21760463,110240.0,110230.0,1.25614934]
[1762111688476,0.21760463,110240.0,110230.0,1.25619773]
[1762111688684,0.30372166,110240.0,110230.0,1.27195773]
[1762111689428,0.30472166,110240.0,110230.0,1.08144819]
[1762111690438,0.30972166,110240.0,110230.0,1.08344819]
[1762111690891,0.33698738,110240.0,110230.0,1.08344819]
[1762111691095,0.76128408,110240.0,110230.0,1.05970819]
[1762111691859,0.76128408,110240.0,110230.0,1.05964694]
[1762111693907,0.76128408,110240.0,110230.0,1.06008825]
[1762111694040,0.33698738,110240.0,110230.0,1.06008825]
[1762111694242,0.33698738,110240.0,110230.0,1.08382825]
[1762111694868,0.76128408,110240.0,110230.0,1.08382825]
[1762111695346,0.80128408,110240.0,110230.0,1.08382825]
[1762111695573,0.80128408,110240.0,110230.0,1.26526705]
[1762111696138,0.80128408,110240.0,110230.0,1.08382825]
[1762111696351,0.80128408,110240.0,110230.0,1.26526705]
[1762111696533,0.80128408,110240.0,110230.0,1.08382825]
[1762111699666,0.80128408,110240.0,110230.0,1.03223825]
[1762111699929,0.39640791,110240.0,110230.0,1.03223825]
[1762111700203,0.82070461,110240.0,110230.0,1.03223825]
[1762111701083,0.84478595,110240.0,110230.0,1.03223825]
[1762111701781,0.55762108,110230.0,110220.0,0.0004]
[1762111701988,1.50551458,110230.0,110220.0,0.00044834]
[1762111702403,1.49556588,110230.0,110220.0,1e-08]
[1762111702618,1.57142286,110230.0,110220.0,1e-08]
[1762111702815,1.58827257,110230.0,110220.0,1e-08]
[1762111703023,1.59427257,110230.0,110220.0,1e-08]
[1762111703225,1.5942695,110230.0,110220.0,1e-08]
[1762111703639,1.50519955,110230.0,110220.0,1e-08]
[1762111703781,1.52019955,110230.0,110220.0,0.00300001]
[1762111704193,1.73019814,110230.0,110220.0,0.00300001]
[1762111704405,1.72841395,110230.0,110220.0,0.00300001]
[1762111704643,1.76841395,110230.0,110220.0,0.00300001]
[1762111705495,1.85823296,110230.0,110220.0,0.00300001]
[1762111705696,1.85823372,110230.0,110220.0,0.00300001]
[1762111708152,1.43393702,110230.0,110220.0,0.00300001]
[1762111708563,1.85823372,110230.0,110220.0,0.00300001]
[1762111709432,1.43393702,110230.0,110220.0,0.00300001]
[1762111709636,1.85823372,110230.0,110220.0,0.00300001]
[1762111710116,1.43393702,110230.0,110220.0,0.00300001]
[1762111710528,1.34411801,110230.0,110220.0,0.00300001]
[1762111710729,1.11530988,110230.0,110220.0,0.00300001]
[1762111710936,1.14047335,110230.0,110220.0,0.00300001]
[1762111711138,0.71617665,110230.0,110220.0,0.00300001]
[1762111711356,1.14047335,110230.0,110220.0,0.00300001]
[1762111711587,1.1403864,110230.0,110220.0,0.00300001]
[1762111711788,0.52145527,110220.0,110210.0,0.0002]
[1762111711992,1.12505571,110220.0,110210.0,0.00024842]
[1762111712429,1.15232919,110220.0,110210.0,0.00024842]
[1762111712651,1.12716572,110220.0,110210.0,0.00024842]
[1762111713059,1.14116572,110220.0,110210.0,0.00224842]
[1762111713484,1.16632919,110220.0,110210.0,0.00224842]
[1762111714737,1.18320479,110220.0,110210.0,0.00224842]
[1762111715014,1.22320479,110220.0,110210.0,0.00224842]
[1762111716431,1.20632919,110220.0,110210.0,0.00224842]
[1762111717727,1.20632919,110220.0,110210.0,0.00246915]
[1762111718665,1.2961482,110220.0,110210.0,0.00246915]
[1762111718867,1.73732227,110220.0,110210.0,0.00246915]
[1762111720236,1.68871956,110220.0,110210.0,0.00246915]
[1762111721554,1.59890055,110220.0,110210.0,0.00246915]
[1762111721915,1.17460385,110220.0,110210.0,0.00246915]
[1762111722889,1.21078613,110220.0,110210.0,0.00246915]
[1762111723486,1.63508283,110220.0,110210.0,0.00246915]
[1762111723687,1.21078613,110220.0,110210.0,0.00246915]
[1762111724317,1.18562266,110220.0,110210.0,0.00246915]
[1762111724482,1.21078613,110220.0,110210.0,0.00246915]
[1762111725316,1.21078613,110220.0,110210.0,0.05355915]
[1762111725676,1.21078613,110220.0,110210.0,0.03049915]
[1762111725976,1.21078613,110220.0,110210.0,0.00246915]
[1762111726210,0.61299441,110210.0,110200.0,0.0002]
[1762111726462,1.27358901,110210.0,110200.0,0.00024842]
[1762111726629,0.55767048,110200.0,110190.0,0.0002]
[1762111726840,0.55768695,110190.0,110180.0,0.01]
[1762111727046,1.53599784,110190.0,110180.0,0.01]
[1762111727258,1.5450819,110190.0,110180.0,0.01]
[1762111727914,1.57236523,110190.0,110180.0,0.01]
[1762111728291,1.57536523,110190.0,110180.0,0.015]
[1762111728508,1.61763851,110190.0,110180.0,0.015]
[1762111728704,1.61663851,110190.0,110180.0,0.015]
[1762111728964,1.61363851,110190.0,110180.0,0.01]
[1762111729184,1.55482329,110190.0,110180.0,0.013]
[1762111729811,1.58218845,110190.0,110180.0,0.013]
[1762111730017,0.9458508,110160.0,110150.0,0.01195093]
[1762111730159,1.03389314,110160.0,110150.0,0.03505937]
[1762111730363,1.05822427,110160.0,110150.0,0.05145937]
[1762111730766,1.08551003,110160.0,110150.0,0.05145937]
[1762111731195,1.08951003,110160.0,110150.0,0.06645937]
[1762111731424,1.08950888,110160.0,110150.0,0.06645937]
[1762111731573,1.57929461,110160.0,110150.0,0.01536937]
[1762111731784,1.5381349,110160.0,110150.0,0.03176937]
[1762111732231,1.5381349,110160.0,110150.0,0.01536937]
[1762111732366,1.50569537,110160.0,110150.0,0.01536937]
[1762111732799,1.50569537,110160.0,110150.0,0.01669453]
[1762111733499,1.59551438,110160.0,110150.0,0.01669453]
[1762111734704,1.50569537,110160.0,110150.0,0.01669453]
[1762111735106,1.5380799,110160.0,110150.0,0.01669453]
[1762111736490,1.4894206,110160.0,110150.0,0.01669453]
[1762111739357,1.51367559,110160.0,110150.0,0.01669453]
[1762111740839,1.48638983,110160.0,110150.0,0.01669453]
[1762111741250,1.57620884,110160.0,110150.0,0.01669453]
[1762111741451,1.48638983,110160.0,110150.0,0.01669453]
[1762111745722,1.52638983,110160.0,110150.0,0.01669453]
[1762111746562,1.52789185,110160.0,110150.0,0.01669453]
[1762111749983,1.50363686,110160.0,110150.0,0.01669453]
[1762111750451,1.55229616,110160.0,110150.0,0.01669453]
[1762111750680,1.98758933,110160.0,110150.0,0.01669453]
[1762111750899,2.01495449,110160.0,110150.0,0.01669453]
[1762111751134,0.55775286,110150.0,110140.0,0.0002]
[1762111751376,0.55775286,110150.0,110140.0,0.00024844]
[1762111751377,2.04753138,110150.0,110140.0,0.00024844]
[1762111751621,2.13735039,110150.0,110140.0,0.00024844]
[1762111751822,2.13735039,110150.0,110140.0,0.00046938]
[1762111752898,2.13735039,110150.0,110140.0,0.00446938]
[1762111753110,2.14635039,110150.0,110140.0,0.00446938]
[1762111753320,2.14535039,110150.0,110140.0,0.00446938]
[1762111753530,2.14835039,110150.0,110140.0,0.00546938]
[1762111753742,2.20284039,110150.0,110140.0,0.00546938]
[1762111753967,1.60611851,110150.0,110140.0,0.00546938]
[1762111754809,1.64611851,110150.0,110140.0,0.00546938]
[1762111755873,1.67348367,110150.0,110140.0,0.00546938]
[1762111756292,1.24843596,110150.0,110140.0,0.00546938]
[1762111756505,1.2210708,110150.0,110140.0,0.00546938]
[1762111757374,1.64611851,110150.0,110140.0,0.00546938]
[1762111758265,1.2210708,110150.0,110140.0,0.00546938]
[1762111758697,1.64611851,110150.0,110140.0,0.00546938]
[1762111759326,1.2210708,110150.0,110140.0,0.00546938]
[1762111761197,1.2210708,110150.0,110140.0,0.02145938]
[1762111761401,1.24843596,110150.0,110140.0,0.00546938]
[1762111761815,1.33825497,110150.0,110140.0,0.00546938]
[1762111762269,1.24843596,110150.0,110140.0,0.00546938]
[1762111763305,1.18355689,110150.0,110140.0,0.00546938]
[1762111763516,1.24843596,110150.0,110140.0,0.00546938]
[1762111763916,1.18355689,110150.0,110140.0,0.00546938]
[1762111766321,0.84804575,110150.0,110140.0,0.05682938]
[1762111766528,0.84804575,110150.0,110140.0,0.23841645]
[1762111766732,1.24788346,110150.0,110140.0,0.23841645]
[1762111766939,1.24788346,110150.0,110140.0,0.05682938]
[1762111767170,0.89988346,110150.0,110140.0,0.05282938]
[1762111767347,1.24588346,110150.0,110140.0,0.05682938]
[1762111767937,1.24588346,110150.0,110140.0,0.23841645]
[1762111768486,1.24288346,110150.0,110140.0,0.23741645]
[1762111768690,1.24388346,110150.0,110140.0,0.05582938]
[1762111770008,1.24388346,110150.0,110140.0,0.23741645]
[1762111770226,1.24388346,110150.0,110140.0,0.05582938]
[1762111770448,1.24388346,110150.0,110140.0,0.03256938]
[1762111770664,1.21141091,110150.0,110140.0,0.03256938]
[1762111771119,1.72627763,110150.0,110140.0,0.00446938]
[1762111771334,0.52158707,110140.0,110130.0,0.00890069]
[1762111771540,1.50336418,110140.0,110130.0,0.00890069]
[1762111771754,1.47156205,110140.0,110130.0,0.00890069]
[1762111771964,0.62146663,110140.0,110130.0,0.00912166]
[1762111772165,1.53124659,110140.0,110130.0,0.00912166]
[1762111772812,1.53224659,110140.0,110130.0,0.01512166]
[1762111773023,1.53924659,110140.0,110130.0,0.01512166]
[1762111773432,1.47956205,110140.0,110130.0,0.01512166]
[1762111775257,1.52827607,110140.0,110130.0,0.01512166]
[1762111776324,1.52827894,110140.0,110130.0,0.01512166]
[1762111776750,1.56827894,110140.0,110130.0,0.01512166]
[1762111777174,1.51956205,110140.0,110130.0,0.01512166]
[1762111777478,1.62550985,110140.0,110130.0,0.01512166]
[1762111777704,1.56828314,110140.0,110130.0,0.01512166]
[1762111778803,1.99333085,110140.0,110130.0,0.01512166]
[1762111779019,2.00948883,110140.0,110130.0,0.01512166]
[1762111779370,1.94460976,110140.0,110130.0,0.01512166]
[1762111779634,2.03442877,110140.0,110130.0,0.01512166]
[1762111779790,1.60938106,110140.0,110130.0,0.01512166]
[1762111779994,2.03442877,110140.0,110130.0,0.01512166]
[1762111780202,2.09930784,110140.0,110130.0,0.01512166]
[1762111781259,2.03442877,110140.0,110130.0,0.01512166]
[1762111781842,1.60938106,110140.0,110130.0,0.01512166]
[1762111782207,1.65811185,110140.0,110130.0,0.01512166]
[1762111782642,1.56829284,110140.0,110130.0,0.01512166]
[1762111785315,1.58386631,110140.0,110130.0,0.01512166]
[1762111785519,1.55138125,110140.0,110130.0,0.01512166]
[1762111785638,1.56830013,110140.0,110130.0,0.01512166]
[1762111786081,1.58386663,110140.0,110130.0,0.01512166]
[1762111786282,1.65811925,110140.0,110130.0,0.01512166]
[1762111789423,1.67368062,110140.0,110130.0,0.01512166]
[1762111792912,1.65426009,110140.0,110130.0,0.01512166]
[1762111793115,1.67374668,110140.0,110130.0,0.01512166]
[1762111793956,1.72823668,110140.0,110130.0,0.01512166]
[1762111794170,1.67374668,110140.0,110130.0,0.01512166]
[1762111796806,0.82365126,110140.0,110130.0,0.01512166]
[1762111797016,1.67374668,110140.0,110130.0,0.01512166]
[1762111798173,1.64126632,110140.0,110130.0,0.01512166]
[1762111798416,1.65819339,110140.0,110130.0,0.01512166]
[1762111799625,2.0832411,110140.0,110130.0,0.01512166]
[1762111799775,1.65819339,110140.0,110130.0,0.01512166]
[1762111801083,1.62201111,110140.0,110130.0,0.01512166]
[1762111801304,0.16049379,110140.0,110130.0,0.06776166]
[1762111801531,0.09478002,110140.0,110130.0,0.24936521]
[1762111801743,0.09478002,110140.0,110130.0,0.67441292]
[1762111801744,0.048,110140.0,110130.0,0.67441292]
[1762111801973,0.388,110140.0,110130.0,0.24936521]
[1762111802215,0.40748659,110140.0,110130.0,0.336141]
[1762111802426,0.91165133,110140.0,110130.0,0.24536521]
[1762111802697,1.51728611,110140.0,110130.0,0.24336521]
[1762111802942,1.18228611,110140.0,110130.0,0.07276166]
[1762111803165,0.70837297,110140.0,110130.0,0.07276166]
[1762111803380,1.58566619,110140.0,110130.0,0.07276166]
[1762111803590,1.61006542,110140.0,110130.0,0.07276166]
[1762111803795,1.69488443,110140.0,110130.0,0.06176166]
[1762111804006,1.69488443,110140.0,110130.0,0.06576166]
[1762111804217,1.70088443,110140.0,110130.0,0.06876166]
[1762111804427,1.70088443,110140.0,110130.0,0.04444166]
[1762111804428,1.61106542,110140.0,110130.0,0.04444166]
[1762111804892,1.61106542,110140.0,110130.0,0.02786166]
[1762111805816,1.61106542,110140.0,110130.0,0.01612166]
[1762111806038,1.61106542,110140.0,110130.0,0.06876166]
[1762111806457,1.18609369,110140.0,110130.0,0.04444166]
[1762111806902,1.22318001,110140.0,110130.0,0.04444166]
[1762111807131,1.22318001,110140.0,110130.0,0.01612166]
[1762111808607,2.47617801,110140.0,110130.0,0.01612166]
[1762111809568,2.50871032,110140.0,110130.0,0.01612166]
[1762111810700,2.48431109,110140.0,110130.0,0.01612166]
[1762111811382,2.50867676,110140.0,110130.0,0.01612166]
[1762111814304,2.48431109,110140.0,110130.0,0.01612166]
[1762111816726,2.50867857,110140.0,110130.0,0.01612166]
[1762111818091,2.48431109,110140.0,110130.0,0.01612166]
[1762111818294,2.50868083,110140.0,110130.0,0.01612166]
[1762111818531,2.50868039,110140.0,110130.0,0.01612166]
[1762111818937,2.48431109,110140.0,110130.0,0.01612166]
[1762111823621,2.95816557,110140.0,110130.0,0.01612166]
[1762111823820,2.98546012,110140.0,110130.0,0.01612166]
[1762111826616,2.56033643,110140.0,110130.0,0.01612166]
[1762111828346,2.5772646,110140.0,110130.0,0.01612166]
[1762111830715,2.56033643,110140.0,110130.0,0.01612166]
[1762111831998,2.56033643,110140.0,110130.0,0.06822166]
[1762111831999,2.44732152,110140.0,110130.0,0.06822166]
[1762111832215,2.44732152,110140.0,110130.0,0.04405166]
[1762111832422,2.49605231,110140.0,110130.0,0.04405166]
[1762111832632,2.44732152,110140.0,110130.0,0.04405166]
[1762111833129,2.02219783,110140.0,110130.0,0.04405166]
[1762111833334,2.44732152,110140.0,110130.0,0.04405166]
[1762111833784,2.42002697,110140.0,110130.0,0.04405166]
[1762111833921,2.44545051,110140.0,110130.0,0.04405166]
[1762111834781,2.44545051,110140.0,110130.0,0.06822166]
[1762111835170,2.4941813,110140.0,110130.0,0.06822166]
[1762111835999,2.46875776,110140.0,110130.0,0.06822166]
[1762111836679,2.04363407,110140.0,110130.0,0.06822166]
[1762111836821,2.46875776,110140.0,110130.0,0.06822166]
[1762111837027,2.42002697,110140.0,110130.0,0.06822166]
[1762111838366,2.46875776,110140.0,110130.0,0.06822166]
[1762111839454,2.2384399,110140.0,110130.0,0.06822166]
[1762111839661,1.4290076,110140.0,110130.0,0.26798556]
[1762111839875,1.7690076,110140.0,110130.0,0.24982521]
[1762111840294,1.40460162,110140.0,110130.0,0.24982521]
[1762111840513,1.92618869,110140.0,110130.0,0.24982521]
[1762111843763,1.74460162,110140.0,110130.0,0.24982521]
[1762111844616,1.92618869,110140.0,110130.0,0.24982521]
[1762111845078,1.92618869,110140.0,110130.0,0.04405166]
[1762111845079,2.43732418,110140.0,110130.0,0.04405166]
[1762111845289,2.43732418,110140.0,110130.0,0.06671166]
[1762111847075,2.52714319,110140.0,110130.0,0.01612166]
[1762111847308,2.98479919,110140.0,110130.0,0.01612166]
[1762111847536,2.98768776,110140.0,110130.0,0.01612166]
[1762111847965,3.03641855,110140.0,110130.0,0.01612166]
[1762111848183,3.03141855,110140.0,110130.0,0.01212166]
[1762111848409,2.98268776,110140.0,110130.0,0.01212166]
[1762111848644,2.99168776,110140.0,110130.0,0.01612166]
[1762111849146,2.42402697,110140.0,110130.0,0.04408166]
[1762111849368,1.99790328,110140.0,110130.0,0.04108166]
[1762111849584,2.42302697,110140.0,110130.0,0.04108166]
[1762111849805,2.42402697,110140.0,110130.0,0.04108166]
[1762111850704,2.44840079,110140.0,110130.0,0.04108166]
[1762111851551,2.0232771,110140.0,110130.0,0.04108166]
[1762111851779,2.44840079,110140.0,110130.0,0.06374166]
[1762111852399,2.44840079,110140.0,110130.0,0.04108166]
[1762111853222,2.44840079,110140.0,110130.0,0.06374166]
[1762111853691,2.47282251,110140.0,110130.0,0.06374166]
[1762111854140,2.4402902,110140.0,110130.0,0.06374166]
[1762111854346,1.99074479,110140.0,110130.0,0.06374166]
[1762111855166,2.40686848,110140.0,110130.0,0.05974166]
[1762111855610,2.40986848,110140.0,110130.0,0.06474166]
[1762111856021,2.41086848,110140.0,110130.0,0.06774166]
[1762111856221,2.4352902,110140.0,110130.0,0.06774166]
[1762111857301,2.4352902,110140.0,110130.0,0.24934521]
[1762111857523,2.4352902,110140.0,110130.0,0.06774166]
[1762111857737,2.4352902,110140.0,110130.0,0.01712166]
[1762111857959,2.41086848,110140.0,110130.0,0.06774166]
[1762111858415,2.4352902,110140.0,110130.0,0.06774166]
[1762111861549,2.41086848,110140.0,110130.0,0.06774166]
[1762111861762,2.41086848,110140.0,110130.0,0.01712166]
[1762111861981,2.4352902,110140.0,110130.0,0.06774166]
[1762111863925,2.25370313,110140.0,110130.0,0.24934521]
[1762111864134,2.4352902,110140.0,110130.0,0.06774166]
[1762111865629,2.4352902,110140.0,110130.0,0.24934521]
[1762111865870,2.4352902,110140.0,110130.0,0.06774166]
[1762111866707,2.41086848,110140.0,110130.0,0.06774166]
[1762111867538,2.41086848,110140.0,110130.0,0.24934521]
[1762111867740,1.98574479,110140.0,110130.0,0.24934521]
[1762111868449,2.41081152,110140.0,110130.0,0.24934521]
[1762111872024,1.31748459,110140.0,110130.0,0.24934521]
[1762111872269,1.31748459,110140.0,110130.0,0.33614319]
[1762111872486,1.65748459,110140.0,110130.0,0.33614319]
[1762111872669,1.65748459,110140.0,110130.0,0.76120992]
[1762111873750,1.637998,110140.0,110130.0,0.76120992]
[1762111875017,1.637998,110140.0,110130.0,0.33614319]
[1762111875231,1.637998,110140.0,110130.0,0.76120992]
[1762111875912,1.297998,110140.0,110130.0,0.76120992]
[1762111876788,1.293998,110140.0,110130.0,0.75620992]
[1762111877199,1.296998,110140.0,110130.0,0.76320992]
[1762111877630,1.297998,110140.0,110130.0,0.76820992]
[1762111879147,1.297998,110140.0,110130.0,0.85432695]
[1762111881268,1.297998,110140.0,110130.0,1.27939368]
[1762111883020,1.297998,110140.0,110130.0,1.28939367]
[1762111895667,1.297998,110140.0,110130.0,1.35639058]
[1762111896833,1.297998,110140.0,110130.0,1.36563004]
[1762111899762,0.59146038,110140.0,110130.0,1.28883205]
[1762111899937,0.47054235,110140.0,110130.0,1.28883205]
[1762111900524,0.34,110180.0,110170.0,0.18153762]
[1762111900891,0.34014487,110180.0,110170.0,0.19278762]
[1762111901035,0.34014487,110180.0,110170.0,0.23238762]
[1762111901447,0.34014487,110180.0,110170.0,0.65745435]
[1762111901677,0.34014487,110180.0,110170.0,0.66145435]
[1762111901678,0.34714487,110180.0,110170.0,0.66145435]
[1762111901841,0.34714487,110180.0,110170.0,0.66345435]
[1762111902658,0.34714487,110180.0,110170.0,0.23838762]
[1762111904305,0.36663657,110180.0,110170.0,0.23838762]
[1762111905312,0.34714487,110180.0,110170.0,0.23838762]
[1762111907154,0.00714487,110180.0,110170.0,0.66345435]
[1762111912634,0.00714487,110180.0,110170.0,0.66145435]
[1762111912836,0.00714487,110180.0,110170.0,0.66445435]
[1762111913048,0.00014487,110180.0,110170.0,0.66045435]
[1762111913604,0.00714487,110180.0,110170.0,0.66345435]
[1762111916719,0.00714487,110180.0,110170.0,0.23838762]
[1762111916929,0.00714487,110180.0,110170.0,0.66345435]
[1762111918843,0.00714487,110180.0,110170.0,0.74957138]
[1762111925579,0.00714487,110180.0,110170.0,0.23838762]
[1762111925763,0.00714487,110180.0,110170.0,0.66345435]
[1762111926193,0.00714487,110180.0,110170.0,0.23838762]
[1762111926430,0.00714487,110180.0,110170.0,0.66345435]
[1762111928460,0.00714487,110180.0,110170.0,0.23838762]
[1762111929454,0.00714487,110180.0,110170.0,0.66302469]
[1762111930072,0.00714487,110180.0,110170.0,0.23838762]
[1762111936237,0.00714487,110180.0,110170.0,0.66302469]
[1762111944054,0.00714487,110180.0,110170.0,0.74914172]
[1762111967086,0.00714487,110180.0,110170.0,0.32450465]
[1762111967281,0.00714487,110180.0,110170.0,0.74914172]
[1762111982659,0.00714487,110180.0,110170.0,0.23838762]
[1762111983034,0.45905557,110180.0,110170.0,0.23838762]
[1762111983217,0.0344185,110180.0,110170.0,0.23838762]
[1762111989032,0.0344185,110180.0,110170.0,0.66307251]
[1762111990689,0.0344185,110180.0,110170.0,0.23838762]
[1762111990920,0.0344185,110180.0,110170.0,0.66307251]
[1762111995105,0.0344185,110180.0,110170.0,0.23838762]
[1762111995106,0.00714487,110180.0,110170.0,0.23838762]
[1762111995232,0.00714487,110180.0,110170.0,0.66307251]
[1762112012778,0.00714487,110180.0,110170.0,0.23838762]
[1762112013045,0.00714487,110180.0,110170.0,0.66307251]
[1762112025445,0.00714487,110180.0,110170.0,0.66193289]
[1762112029257,0.00714487,110180.0,110170.0,1.08661778]
[1762112029475,0.00714487,110180.0,110170.0,1.09661777]
[1762112030113,0.00714487,110180.0,110170.0,1.09402429]
[1762112030350,0.00014487,110180.0,110170.0,1.09102429]
[1762112030764,0.00314487,110180.0,110170.0,1.09302429]
[1762112031231,0.00314487,110180.0,110170.0,1.09902429]
[1762112041238,0.00314487,110180.0,110170.0,0.24965451]
[1762112041422,0.00314487,110180.0,110170.0,1.09902429]
[1762112045305,0.02726793,110210.0,110200.0,1.03085798]
[1762112045608,0.3595351,110230.0,110220.0,0.18145527]
[1762112045830,0.54110586,110230.0,110220.0,0.20945527]
[1762112046033,0.54110586,110230.0,110220.0,0.23221527]
[1762112046307,0.99305498,110230.0,110220.0,0.23221527]
[1762112046753,0.99405498,110230.0,110220.0,0.23221527]
[1762112048140,1.00705498,110230.0,110220.0,0.23521527]
[1762112048730,0.40093129,110230.0,110220.0,0.23521527]
[1762112048940,0.40093129,110230.0,110220.0,0.65990016]
[1762112049146,0.04139619,110230.0,110220.0,0.65990016]
[1762112050395,0.04139619,110230.0,110220.0,0.65945142]
[1762112053005,0.01413196,110230.0,110220.0,1.08368757]
[1762112053256,0.01413196,110230.0,110220.0,1.09368756]
[1762112053922,0.00113196,110230.0,110220.0,1.09068756]
[1762112054573,0.00313196,110230.0,110220.0,1.09268756]
[1762112054786,0.00313196,110230.0,110220.0,1.09368756]
[1762112055692,0.00313196,110230.0,110220.0,1.09100631]
[1762112055931,0.00313196,110230.0,110220.0,1.4410063]
[1762112056390,1e-08,110230.0,110220.0,1.4410063]
[1762112059197,1e-08,110230.0,110220.0,1.46825921]
[1762112059399,1e-08,110230.0,110220.0,4.92867764]
[1762112059809,1e-08,110230.0,110220.0,4.50444149]
[1762112060004,0.0004,110260.0,110250.0,0.18140589]
[1762112060225,0.00088433,110260.0,110250.0,0.65083262]
[1762112060453,0.00088433,110260.0,110250.0,0.65524204]
[1762112062367,0.00488433,110260.0,110250.0,0.65724204]
[1762112062865,0.00488433,110260.0,110250.0,1.08147819]
[1762112063073,0.00488433,110260.0,110250.0,0.65724204]
[1762112065447,0.00488433,110260.0,110250.0,0.23300589]
[1762112065674,0.00488433,110260.0,110250.0,0.65724204]
[1762112072065,0.00488433,110260.0,110250.0,0.23300589]
[1762112073718,0.00488433,110260.0,110250.0,0.65724204]
[1762112075729,0.00488433,110260.0,110250.0,0.23300589]
[1762112076948,0.00488433,110260.0,110250.0,0.65724204]
[1762112081190,0.00488433,110260.0,110250.0,0.23300589]
[1762112081537,0.18627377,110260.0,110250.0,0.23300589]
[1762112081784,0.23302047,110260.0,110250.0,0.23300589]
[1762112082153,0.05163103,110260.0,110250.0,0.23300589]
[1762112082374,0.05164126,110260.0,110250.0,0.23300589]
[1762112082600,0.04764126,110260.0,110250.0,0.23100589]
[1762112082800,0.2290307,110260.0,110250.0,0.23100589]
[1762112083267,0.05264126,110260.0,110250.0,0.23100589]
[1762112083884,0.06464126,110260.0,110250.0,0.23400589]
[1762112087104,0.2460307,110260.0,110250.0,0.23400589]
[1762112087970,0.06464126,110260.0,110250.0,0.23400589]
[1762112090163,0.2460307,110260.0,110250.0,0.23400589]
[1762112090835,0.67026685,110260.0,110250.0,0.0526]
[1762112091076,0.69464067,110260.0,110250.0,0.23400589]
[1762112091297,0.2460307,110260.0,110250.0,0.23400589]
[1762112100871,0.67026685,110260.0,110250.0,0.0526]
[1762112101078,0.67026685,110260.0,110250.0,0.23400589]
[1762112101338,0.48887741,110260.0,110250.0,0.23400589]
[1762112101554,0.06464126,110260.0,110250.0,0.65824204]
[1762112101758,0.04513724,110260.0,110250.0,0.65824204]
[1762112102581,0.01788433,110260.0,110250.0,0.65824204]
[1762112103220,0.00588433,110260.0,110250.0,0.65524204]
[1762112103690,0.01088433,110260.0,110250.0,0.65724204]
[1762112104158,0.00588433,110260.0,110250.0,0.65724204]
[1762112104595,0.00688433,110260.0,110250.0,0.65724204]
[1762112109875,0.00688433,110260.0,110250.0,0.65457991]
[1762112110099,0.00688433,110260.0,110250.0,1.07881606]
[1762112110749,0.00688433,110260.0,110250.0,1.08881605]
[1762112111168,0.00688433,110260.0,110250.0,1.17493308]
[1762112112423,0.00688433,110260.0,110250.0,1.32210584]
[1762112114719,0.00688433,110260.0,110250.0,1.17410584]
[1762112115959,0.00688433,110260.0,110250.0,1.17148782]
[1762112117106,0.00688433,110260.0,110250.0,0.74766529]
[1762112124408,0.00688433,110260.0,110250.0,1.17148782]
[1762112125479,0.00688433,110260.0,110250.0,1.31948782]
[1762112127410,0.00688433,110260.0,110250.0,1.30948783]
[1762112127624,0.00688433,110260.0,110250.0,0.89566529]
[1762112127830,0.00688433,110260.0,110250.0,0.37572574]
[1762112128045,0.00688433,110260.0,110250.0,0.79954827]
[1762112128681,0.00688433,110260.0,110250.0,0.37572574]
[1762112131503,0.00688433,110260.0,110250.0,0.65154827]
[1762112131747,0.00688433,110260.0,110250.0,0.22772574]
[1762112131960,0.00688433,110260.0,110250.0,0.65154827]
[1762112135141,0.00688433,110260.0,110250.0,0.22772574]
[1762112135350,0.00688433,110260.0,110250.0,0.65154827]
[1762112135593,0.00688433,110260.0,110250.0,1.16148783]
[1762112137432,0.00688433,110260.0,110250.0,1.17148782]
[1762112138717,0.00453788,110260.0,110250.0,1.17148782]
[1762112142999,0.00453788,110260.0,110250.0,1.31948782]
[1762112151418,0.00453788,110260.0,110250.0,0.8856653]
[1762112151640,0.00453788,110260.0,110250.0,0.79954827]
[1762112151807,0.00453788,110260.0,110250.0,0.37572574]
[1762112152019,0.00453788,110260.0,110250.0,0.79954827]
[1762112154763,0.00453788,110260.0,110250.0,0.65154827]
[1762112161098,0.42836041,110260.0,110250.0,0.22772574]
[1762112161312,0.60974985,110260.0,110250.0,0.02376985]
[1762112161525,0.60974985,110260.0,110250.0,0.20517574]
[1762112161725,0.60974985,110260.0,110250.0,0.04665985]
[1762112162146,0.60974985,110260.0,110250.0,0.02376985]
[1762112162402,0.60974985,110260.0,110250.0,0.04665985]
[1762112162619,0.63700754,110260.0,110250.0,0.04665985]
[1762112162825,0.63346966,110260.0,110250.0,0.22606574]
[1762112163025,0.63346966,110260.0,110250.0,0.04465985]
[1762112163242,0.61621197,110260.0,110250.0,0.04765985]
[1762112163452,0.61621197,110260.0,110250.0,0.01448]
[1762112163678,1.0400345,110260.0,110250.0,0.0298]
[1762112163892,0.61521197,110260.0,110250.0,0.05269]
[1762112164097,0.61921197,110260.0,110250.0,0.05269]
[1762112170728,0.61921197,110260.0,110250.0,0.003]
[1762112171478,1.07921678,110260.0,110250.0,0.003]
[1762112171867,1.09871369,110260.0,110250.0,0.003]
[1762112172071,1.12597329,110260.0,110250.0,0.003]
[1762112172537,0.70255695,110260.0,110250.0,0.003]
[1762112178315,0.27832823,110260.0,110250.0,0.003]
[1762112178543,0.70255695,110260.0,110250.0,0.003]
[1762112181452,0.70255695,110260.0,110250.0,0.00294714]
[1762112185168,0.70255695,110260.0,110250.0,0.01957714]
[1762112185895,0.70255695,110260.0,110250.0,0.00294714]
[1762112186669,0.70255695,110260.0,110250.0,0.01957714]
[1762112187226,0.70255695,110260.0,110250.0,0.00294714]
[1762112187651,1.08540258,110260.0,110250.0,0.00051314]
[1762112187844,0.52142235,110240.0,110230.0,0.02988821]